Cogmind - Beta 16.1 @@@ ROGUE MODE // 2026.04.04 @ 18:12:35 Player: konomiyu Result: Destroyed by S-27 Virus with Autogun Performance ------------- Evolutions (4) 2000 Regions Visited (13) 2600 Robots Destroyed (93) 465 Value Destroyed (2337) 2337 Prototype IDs (32) 640 Alien Tech Used (0) 0 Bonus (2343) 2343 TOTAL SCORE: 10385 Bonus ------- High Alert Combat Kills 45 Follower Combat Kills 1222 Registered with UFD 300 Met Optimus in HQ 500 Met Data Miner 300 Friendly Fire -24 Cogmind --------- Core Integrity 0/850 Matter 300/300 Energy 99/100 System Corruption 18% Temperature Cool (0) Movement Core (50) Location -5/Proximity Caves Parts ------- > --- POWER (1) -------- (None) > --- PROPULSION (6) --- (None) > --- UTILITY (6) ------ Improved Signal Interpreter 0b10 Decoder Chip [Skirmisher] Improved Hacking Suite Authchip [Propulsion] > --- WEAPON (2) ------- (None) > --- INVENTORY (5) ---- Angular Momentum Engine Seismic Detector Makeshift System Shield Remote Datajack Peak State ------------ > --- POWER ------------ Neutrino Core > --- PROPULSION ------- Medium Treads Cooled Cesium-ion Thruster Cooled Cesium-ion Thruster Cooled Cesium-ion Thruster Cooled Cesium-ion Thruster Cooled Cesium-ion Thruster > --- UTILITY ---------- Scrap Suit Advanced Sensor Array Improved Signal Interpreter Seismic Detector Improved Hacking Suite > --- WEAPON ----------- Backup Laser III Carbide Saw > --- INVENTORY -------- Wheel Advanced Transmission Jammer ECM Suite Pulse Rifle DRS Beacon [Rating: 71] Favorites ----------- Power Light Ion Engine Engine Light Ion Engine Power Core Neutrino Core Reactor Cold Fusion Reactor Propulsion Wheel Treads Light Treads Leg Flexi-carbon Leg Wheel Wheel Hover Unit Improved Gravmag System Flight Unit Cooled Cesium-ion Thruster Utility Large Storage Unit Device Improved Heat Sink Storage Large Storage Unit Processor Signal Interpreter Hackware Improved Hacking Suite Protection Light Armor Plating Weapon Pulse Rifle Energy Gun Pulse Rifle Energy Cannon Ion Cannon Ballistic Gun Assault Rifle Special Weapon Remote Datajack Impact Weapon Flail Slashing Weapon Axe Special Melee Weapon Datajack Build | -11 -10 -10 -9 -9 -9 -9 -6 -6 -6 -6 -6 -6 -5 ------- Run | Yrd Mat Min Mat Sto Rec Scr Fac Was Fac Low Low Dat Pro Slots Evolved 8 | . . . 2 . . . 6 . . . . . . Power . | . . . . . . . . . . . . . . Propulsion 4 | . . . . . . . 4 . . . . . . Utility 4 | . . . 2 . . . 2 . . . . . . Weapon . | . . . . . . . . . . . . . . Parts Attached 102 | 7 4 . 20 18 . 7 13 5 23 3 1 1 . Power 15 | 1 . . 3 2 . 1 2 2 3 1 . . . Engine 12 | 1 . . 3 2 . 1 1 1 2 1 . . . Core 2 | . . . . . . . 1 1 . . . . . Reactor 1 | . . . . . . . . . 1 . . . . Propulsion 37 | 2 2 . 5 7 . 2 4 . 14 1 . . . Treads 14 | 1 1 . 4 4 . 1 2 . 1 . . . . Leg 2 | . . . . . . . 1 . 1 . . . . Wheel 7 | 1 1 . 1 1 . 1 1 . 1 . . . . Hover 7 | . . . . 1 . . . . 6 . . . . Flight 7 | . . . . 1 . . . . 5 1 . . . Utility 27 | 2 1 . 6 5 . 3 3 3 2 1 1 . . Device 14 | 1 . . 4 2 . 3 1 2 1 . . . . Storage 2 | 1 1 . . . . . . . . . . . . Processor 4 | . . . 1 1 . . . . 1 1 . . . Hackware 4 | . . . 1 . . . 2 . . . 1 . . Protection 3 | . . . . 2 . . . 1 . . . . . Artifact . | . . . . . . . . . . . . . . Weapon 23 | 2 1 . 6 4 . 1 4 . 4 . . 1 . Energy Gun 9 | 1 1 . 4 2 . . 1 . . . . . . Energy Cannon 2 | . . . . . . . 2 . . . . . . Ballistic Gun 1 | . . . . 1 . . . . . . . . . Ballistic Cannon . | . . . . . . . . . . . . . . Launcher . | . . . . . . . . . . . . . . Special Weapon 5 | 1 . . . . . 1 . . 2 . . 1 . Impact Weapon 2 | . . . 1 1 . . . . . . . . . Slashing Weapon 3 | . . . 1 . . . . . 2 . . . . Piercing Weapon . | . . . . . . . . . . . . . . Special Melee Weapon 1 | . . . . . . . 1 . . . . . . Unidentified Prototypes 10 | . . . 3 2 . 1 1 1 2 . . . . Parts Lost 38 | . . . 3 11 . . 7 4 4 2 . . 7 Power 5 | . . . 1 2 . . 1 . . 1 . . . Propulsion 18 | . . . . 2 . . 5 2 2 1 . . 6 Utility 8 | . . . 2 3 . . 1 1 1 . . . . Weapon 7 | . . . . 4 . . . 1 1 . . . 1 Highest Loss Streak 6 | . . . 1 3 . . 3 4 3 2 . . 6 To Critical Strikes 1 | . . . . . . . 1 . . . . . . Average Backups 10 | 2 6 9 14 14 14 14 11 6 3 3 4 3 3 Power . | . 1 1 . . . . 1 . . . . . . Propulsion 2 | 1 2 2 2 4 6 4 . . . . . . . Utility 3 | . 1 2 2 2 3 5 5 3 2 2 2 2 2 Weapon 3 | . 1 2 7 5 4 3 4 2 1 1 . . . Tool/Special . | . . . . . . . . . . . . . . Unused Backups 8 | . . . . . . 1 . 3 . 1 1 1 1 Power 1 | . . . . . . . . 1 . . . . . Propulsion . | . . . . . . . . . . . . . . Utility 4 | . . . . . . . . 1 . 1 . 1 1 Weapon 3 | . . . . . . 1 . 1 . . 1 . . Tool/Special . | . . . . . . . . . . . . . . Average Slot Usage (%) 92 | . 100 100 86 97 100 99 87 53 91 80 81 86 47 Engine 8 | . 14 14 11 10 11 11 5 1 1 6 6 6 1 Treads 9 | . 17 14 13 10 11 9 13 . 4 6 6 6 1 Wheel 9 | . 10 14 9 10 11 12 11 4 . 5 6 6 1 Hover 1 | . . . . . . . . 3 7 . . . . Flight 5 | . . . . . . . . . 25 20 20 20 5 Device 16 | . 14 14 18 10 11 21 12 14 19 7 6 6 1 Storage 8 | . 14 14 11 11 11 11 6 2 . . . . . Processor 7 | . . . . 11 11 11 6 6 6 12 13 13 13 Hackware 3 | . . . 1 6 . . 12 8 6 6 7 13 13 Protection 1 | . . . . 2 11 . . . . . . . . Energy Gun 15 | . 26 28 21 20 22 21 1 3 2 . . . . Slashing Weapon 1 | . . . . . . . . . 5 6 6 1 3 Peak Build Rating 71 | 7 8 9 25 30 16 26 47 43 71 62 60 61 61 Average Rating 28 | 4 7 8 15 20 16 19 37 25 66 56 57 60 29 On Entrance 28 | . 7 8 9 23 16 16 20 36 35 54 56 60 61 Avg Prop Armor Cover (%) 13 | 17 12 13 11 11 10 11 23 . 10 20 21 19 23 Naked Turns . | . . . . . . . . . . . . . . Heaviest Build 47 | 12 28 28 32 39 35 35 47 45 26 21 20 20 20 Greatest Support 60 | 10 20 10 40 23 10 22 22 22 60 26 20 20 20 Greatest Overweight (x) 3 | 1 2 2 3 3 3 3 3 3 2 2 . . . Average Overweight (x) 1 | . 1 2 2 2 3 2 1 . . . . . . Largest Inventory Capacity 15 | 8 15 15 15 15 15 15 15 15 5 5 5 5 5 Average Capacity 12 | 6 14 15 15 15 15 15 15 8 5 5 5 5 5 Most Carried 15 | 4 8 11 15 15 14 15 15 15 5 5 5 5 5 Average Carried 11 | 2 7 9 14 14 14 14 13 8 4 4 4 4 4 Final Capacity 15 | 8 15 15 15 15 15 15 15 5 5 5 5 5 5 Final Carried 15 | 4 8 11 15 14 14 15 15 5 4 5 5 4 4 Scrap Suit Usage (%) 15 | . . . . . . . . 17 100 12 . . . Parts Cannibalized 2 | . . . . . . . . . 2 . . . . Class Distribution -------------------- 65% | Mutant 24% | Scavenger-Mutant 4% | Hacker-Mutant 3% | Derelict-Assassin Dominant Class ---------------- Mutant | -10/Materials Mutant | -10/Mines Mutant | -9/Materials Mutant | -9/Storage Scavenger-Mutant | -9/Recycling Scavenger-Mutant | -9/Scraptown Derelict-Assassin | -6/Factory Mutant | -6/Waste Mutant | -6/Factory Mutant | -6/Lower Caves Mutant | -6/Lower Caves Derelict-Mutant | -6/Data Miner Mutant | -5/Proximity Caves Resources | -11 -10 -10 -9 -9 -9 -9 -6 -6 -6 -6 -6 -6 -5 ----------- Run | Yrd Mat Min Mat Sto Rec Scr Fac Was Fac Low Low Dat Pro Matter Collected 1853 | 270 75 15 319 318 . 80 213 107 333 54 10 . 59 Remotely . | . . . . . . . . . . . . . . Salvage Created 3187 | 103 179 29 835 1239 . . 303 . 458 41 . . . Parts 177 | 5 15 5 40 73 . . 11 . 24 4 . . . Haulers Intercepted 9 | . . . 3 4 . . . . 2 . . . . Recyclers Shooed 2 | . . . . 2 . . . . . . . . . Parts Field Recycled . | . . . . . . . . . . . . . . Retrieved Matter . | . . . . . . . . . . . . . . Parts Self-Destructed 34 | . . . . . . . . . . 3 . . 31 Prevented 3 | . . . . . . . . . . . . . 3 Parts Restored . | . . . . . . . . . . . . . . Kills | -11 -10 -10 -9 -9 -9 -9 -6 -6 -6 -6 -6 -6 -5 ------- Run | Yrd Mat Min Mat Sto Rec Scr Fac Was Fac Low Low Dat Pro Combat Hostiles Destroyed 58 | . 7 . 18 23 . . 7 . 2 1 . . . Melee 3 | . . . . . . . . . 2 1 . . . Guns 49 | . 7 . 18 22 . . 2 . . . . . . Cannons 2 | . . . . . . . 2 . . . . . . AOE 3 | . . . . . . . 3 . . . . . . Classes Destroyed 13 | 2 5 . 3 1 . . 1 . 1 . . . . Worker 5 | . 1 . 1 2 . . 1 . . . . . . Builder 7 | . . . . 3 . . . . 4 . . . . Tunneler 6 | 1 . 1 2 . . . 1 . 1 . . . . Hauler 9 | . . . 3 4 . . . . 2 . . . . Recycler 3 | 1 . . 1 1 . . . . . . . . . Operator 1 | . 1 . . . . . . . . . . . . Watcher 4 | . 1 . . 1 . . . . 2 . . . . Swarmer 17 | . 6 . 7 4 . . . . . . . . . Grunt 21 | . 1 . 5 10 . . 5 . . . . . . Brawler 1 | . . . 1 . . . . . . . . . . Sentry 14 | . . . 5 9 . . . . . . . . . Hunter 2 | . . . . . . . 2 . . . . . . Programmer 3 | . . . . . . . . . 2 1 . . . Best Kill Streak 5 | 2 4 1 5 4 . . 3 . 2 1 . . . Combat Bots Only 4 | . 3 . 4 4 . . 3 . 1 1 . . . Max Kills in Single Turn 2 | 1 1 1 1 2 . . 2 . 1 1 . . . Gunslinging 1 | . . . . 1 . . . . . . . . . Exploded 2 | . . . . . . . 2 . . . . . . Melee 1 | . . . . . . . . . 1 1 . . . Uniques/NPCs Destroyed . | . . . . . . . . . . . . . . Combat | -11 -10 -10 -9 -9 -9 -9 -6 -6 -6 -6 -6 -6 -5 -------- Run | Yrd Mat Min Mat Sto Rec Scr Fac Was Fac Low Low Dat Pro Hostile Shots Fired 524 | . 47 3 80 143 . . 83 3 73 21 . . 71 Missed 183 | . 8 1 18 52 . . 25 . 33 9 . . 37 Hits 341 | . 39 2 62 91 . . 58 3 40 12 . . 34 Melee 5 | . . . . . . . . 3 2 . . . . Projectile 336 | . 39 2 62 91 . . 58 . 38 12 . . 34 Critical Strikes 12 | . . . 2 4 . . 2 2 . 1 . . 1 Damage Taken 5263 | . 356 20 757 1162 . . 1226 169 776 162 . . 635 Core 1334 | . 85 . 129 267 . . 252 104 69 19 . . 409 Absorbed by Shields . | . . . . . . . . . . . . . . Regen/Repaired (Parts) 270 | . . . . . . 243 . . 27 . . . . Core Remaining (%) 55 | 100 . 66 . . . 1 . . . . . . . Volleys Fired 209 | 5 27 2 51 75 . . 18 . 26 . . 5 . Largest 2 | 1 2 2 2 2 . . 2 . 2 . . 1 . Hottest 150 | 50 100 100 126 126 . . 150 . 140 . . 5 . Shots Fired 378 | 5 54 4 100 148 . . 34 . 28 . . 5 . Gun 328 | 5 54 4 98 148 . . 11 . 8 . . . . Cannon 23 | . . . . . . . 23 . . . . . . Launcher . | . . . . . . . . . . . . . . Special 27 | . . . 2 . . . . . 20 . . 5 . Kinetic 6 | . . . . 6 . . . . . . . . . Thermal 353 | 5 54 4 100 142 . . 34 . 14 . . . . Explosive . | . . . . . . . . . . . . . . Electromagnetic . | . . . . . . . . . . . . . . Robot Hit Streak 28 | 2 5 2 16 28 . . 19 . 5 . . 1 . Robot Miss Streak 6 | 1 6 1 1 3 . . 4 . 2 . . 4 . Penetration Max . | . . . . . . . . . . . . . . Secondary Targets 3 | . . . 1 2 . . . . . . . . . Max Gunslinging Chain 1 | . . . 1 1 . . . . . . . . . Shots Hit Robots 268 | 3 23 2 73 110 . . 23 1 31 1 . 1 . Core Hits 123 | 3 12 1 30 47 . . 19 . 10 1 . . . Critical Kills . | . . . . . . . . . . . . . . Critical Parts Destroyed . | . . . . . . . . . . . . . . Critical Strikes 17 | . 2 . 5 7 . . . . 3 . . . . Burn 14 | . 2 . 5 7 . . . . . . . . . Sever 3 | . . . . . . . . . 3 . . . . Melee Attacks 84 | . . . 3 6 . . 8 1 63 3 . . . Impact 14 | . . . 1 6 . . 7 . . . . . . Slashing 68 | . . . 2 . . . . . 63 3 . . . Piercing . | . . . . . . . . . . . . . . Sneak Attacks 9 | . . . . 1 . . 1 . 7 . . . . Combat Hostiles . | . . . . . . . . . . . . . . Follow-up Attacks . | . . . . . . . . . . . . . . Damage Inflicted 5705 | 36 311 25 1238 1883 . . 1153 . 1017 42 . . . Guns 3593 | 36 311 25 1238 1772 . . 187 . 24 . . . . Cannons 281 | . . . . . . . 281 . . . . . . Explosions 685 | . . . . . . . 685 . . . . . . Melee 1114 | . . . . 103 . . . . 969 42 . . . Ramming 8 | . . . . 8 . . . . . . . . . Kinetic 34 | . . . . 34 . . . . . . . . . Thermal 3999 | 36 311 25 1238 1738 . . 603 . 48 . . . . Explosive 550 | . . . . . . . 550 . . . . . . Electromagnetic . | . . . . . . . . . . . . . . Impact 103 | . . . . 103 . . . . . . . . . Slashing 1011 | . . . . . . . . . 969 42 . . . Piercing . | . . . . . . . . . . . . . . Highest Corruption 18 | . . . . . . . . . 14 15 15 15 18 Average Corruption 11 | . . . . . . . . . 6 14 15 15 15 Corruption Purged . | . . . . . . . . . . . . . . Corruption Blocked . | . . . . . . . . . . . . . . Effects 40 | . . . . . . . . . 8 12 7 4 9 Message Errors 7 | . . . . . . . . . 1 2 1 . 3 Matter Fused 11 | . . . . . . . . . 2 5 . 3 1 Heat Flow Errors 1 | . . . . . . . . . 1 . . . . Energy Discharges 8 | . . . . . . . . . 1 2 4 . 1 Parts Fused 2 | . . . . . . . . . . 1 1 . . Data Loss (minor) 4 | . . . . . . . . . 2 . 1 . 1 Data Loss (major) 1 | . . . . . . . . . . . . 1 . Alerts 2 | . . . . . . . . . . 1 . . 1 Misdirections 4 | . . . . . . . . . 1 1 . . 2 Overload Shots . | . . . . . . . . . . . . . . Overflow Damage 292 | . . . . 73 . . 50 . 169 . . . . Projectiles . | . . . . . . . . . . . . . . Explosions 50 | . . . . . . . 50 . . . . . . Melee 242 | . . . . 73 . . . . 169 . . . . Knockbacks . | . . . . . . . . . . . . . . Impact . | . . . . . . . . . . . . . . Kinetic . | . . . . . . . . . . . . . . Secondary . | . . . . . . . . . . . . . . Self-Inflicted Damage 294 | . . . . . . . 294 . . . . . . Shots 4 | . . . . . . . 4 . . . . . . Rammed 5 | . . . . 5 . . . . . . . . . Targets Rammed 5 | . . . . 5 . . . . . . . . . Kicked . | . . . . . . . . . . . . . . Crushed . | . . . . . . . . . . . . . . Highest Temperature 537 | 40 264 39 537 168 . . 63 . 215 . . . . Average Temperature 78 | 19 75 24 141 39 . . 19 . 51 . . . . Received Heat Transfer 1161 | . 66 . 276 531 . . 171 . 81 9 . . 27 Effects 8 | . . . 8 . . . . . . . . . . Shutdowns 1 | . . . 1 . . . . . . . . . . Energy Bleed 2 | . . . 2 . . . . . . . . . . Interference 3 | . . . 3 . . . . . . . . . . Matter Decay 1 | . . . 1 . . . . . . . . . . Short Circuit 1 | . . . 1 . . . . . . . . . . Siege Activations . | . . . . . . . . . . . . . . Martial Activations . | . . . . . . . . . . . . . . Shielding Activations . | . . . . . . . . . . . . . . Robots Disrupted . | . . . . . . . . . . . . . . Combat Hostiles . | . . . . . . . . . . . . . . Robots Corrupted 1 | . . . . 1 . . . . . . . . . Combat Hostiles 1 | . . . . 1 . . . . . . . . . Parts Fried 2 | . . . . 2 . . . . . . . . . Impact Corruptions 2 | . . . . 2 . . . . . . . . . Robots Melted 1 | . . . 1 . . . . . . . . . . Combat Hostiles . | . . . . . . . . . . . . . . Parts Melted 25 | . . . 10 12 . . 3 . . . . . . Heat Transferred 9968 | 111 1073 74 3071 4551 . . 964 . 124 . . . . Parts Sabotaged . | . . . . . . . . . . . . . . Parts Stolen . | . . . . . . . . . . . . . . Parts Stripped . | . . . . . . . . . . . . . . Power Chain Reactions . | . . . . . . . . . . . . . . Alert | -11 -10 -10 -9 -9 -9 -9 -6 -6 -6 -6 -6 -6 -5 ------- Run | Yrd Mat Min Mat Sto Rec Scr Fac Was Fac Low Low Dat Pro Maximum Alert Level 3 | . . . 1 1 . . 1 . 3 . . . . Low Security (%) 72 | 100 100 100 90 85 100 . 89 100 6 . . . . Level 1 7 | . . . 9 14 . . 10 . 8 . . . . Level 2 2 | . . . . . . . . . 11 . . . . Level 3 17 | . . . . . . . . . 73 . . . . Level 4 . | . . . . . . . . . . . . . . Level 5 . | . . . . . . . . . . . . . . High Security . | . . . . . . . . . . . . . . Max Security . | . . . . . . . . . . . . . . Peak Influence 1074 | 5 154 67 223 261 97 . 223 72 1074 . . . . Initial 97 | . . 53 . 90 97 . . 72 . . . . . Average 225 | 1 41 21 92 106 24 . 58 13 748 . . . . Influence Increases 4603 | 10 297 82 608 745 . . 489 15 2085 75 . . 197 Destroy 0b10 Robot/C 2020 | . 140 60 380 460 . . 140 . 780 20 . . 40 Destroy 0b10 Robot/NC 185 | 10 15 5 35 55 . . 10 . 55 . . . . Destroy Leader 538 | . 32 10 106 140 . . 30 . 200 10 . . 10 Allied During Kill 662 | . . 7 2 . . . . . 641 . . . 12 Successful Hack 99 | . 18 . 4 8 . . 61 . 8 . . . . Select Force Hacks 30 | . . . 30 . . . . . . . . . . Disable Machine 210 | . . . 30 15 . . 105 . 60 . . . . Destroy Structure 184 | . 2 . 6 7 . . 68 15 86 . . . . Lose Combat Pursuer 675 | . 90 . 15 60 . . 75 . 255 45 . . 135 Influence Decreases 4516 | 10 160 219 394 708 251 . 281 223 1018 546 224 372 110 Entered New Map 1380 | . . 84 . 124 154 . . 136 . 396 114 372 . Time Decay 2299 | 10 160 135 344 474 97 . 214 67 498 130 110 . 60 Lost Part 296 | . . . 30 110 . . 66 . 40 20 . . 30 Lost Ally 541 | . . . 20 . . . 1 20 480 . . . 20 Squads Dispatched 32 | . 2 . 1 3 . . 5 . 20 . . . 1 Investigation 16 | . 1 . 1 2 . . 3 . 9 . . . . Extermination 4 | . . . . . . . 1 . 3 . . . . Reinforcement 7 | . 1 . . . . . 1 . 5 . . . . Assault 1 | . . . . . . . . . . . . . 1 Garrison 4 | . . . . 1 . . . . 3 . . . . Intercept . | . . . . . . . . . . . . . . Searches Triggered . | . . . . . . . . . . . . . . Construction Impeded 2 | . . . . . . . . . 2 . . . . Haulers Reinforced 1 | . . . . . . . . . 1 . . . . Active Scanning Responses . | . . . . . . . . . . . . . . Cargo Convoy Interrupts . | . . . . . . . . . . . . . . Stealth | -11 -10 -10 -9 -9 -9 -9 -6 -6 -6 -6 -6 -6 -5 --------- Run | Yrd Mat Min Mat Sto Rec Scr Fac Was Fac Low Low Dat Pro Distress Signals 12 | . 2 . 4 2 . . . . 4 . . . . Communications Jammed . | . . . . . . . . . . . . . . Distress Signals . | . . . . . . . . . . . . . . Times Spotted 179 | . 20 1 35 30 . 3 14 12 40 5 . . 19 Peak Tracking Total 9 | . 6 3 6 5 . 4 5 6 7 4 . . 9 Tactical Retreats 29 | . 3 . 5 4 . . 3 1 7 2 . . 4 ECM-based Alert Blocks 10 | . . . 10 . . . . . . . . . . Traps | -11 -10 -10 -9 -9 -9 -9 -6 -6 -6 -6 -6 -6 -5 ------- Run | Yrd Mat Min Mat Sto Rec Scr Fac Was Fac Low Low Dat Pro Traps Triggered 5 | . 1 . . . . . 1 . 3 . . . . Indirectly . | . . . . . . . . . . . . . . Trap Hack Attempts . | . . . . . . . . . . . . . . Triggered . | . . . . . . . . . . . . . . Disarmed . | . . . . . . . . . . . . . . Reprogrammed . | . . . . . . . . . . . . . . Reused . | . . . . . . . . . . . . . . Traps Extracted . | . . . . . . . . . . . . . . Installed . | . . . . . . . . . . . . . . Triggered . | . . . . . . . . . . . . . . Machines | -11 -10 -10 -9 -9 -9 -9 -6 -6 -6 -6 -6 -6 -5 ---------- Run | Yrd Mat Min Mat Sto Rec Scr Fac Was Fac Low Low Dat Pro Machines Disabled 15 | . . . 2 1 . . 7 . 4 1 . . . Max in Single Turn 5 | . . . 1 1 . . 5 . 1 1 . . . Garrison Access 3 | . . . . 1 . . . . 2 . . . . Machines Repaired . | . . . . . . . . . . . . . . Machines Dismantled . | . . . . . . . . . . . . . . Machines Sabotaged . | . . . . . . . . . . . . . . Overloaded Fab Kills . | . . . . . . . . . . . . . . Hacking | -11 -10 -10 -9 -9 -9 -9 -6 -6 -6 -6 -6 -6 -5 --------- Run | Yrd Mat Min Mat Sto Rec Scr Fac Was Fac Low Low Dat Pro Machines Accessed 45 | . 2 . 5 5 4 6 4 . 15 . . 4 . Terminals 19 | . 2 . 4 4 2 . 1 . 6 . . . . Fabricators 2 | . . . . . . . 1 . 1 . . . . Repair Stations . | . . . . . . . . . . . . . . Recycling Units 6 | . . . 1 . . . . . 5 . . . . Scanalyzers 2 | . . . . . . . 1 . 1 . . . . Garrison Access 4 | . . . . 1 . . 1 . 2 . . . . Total Hacks 175 | . 4 . 10 15 29 50 11 . 26 . . 30 . Successful 136 | . 4 . 3 4 25 50 5 . 15 . . 30 . Failed 38 | . . . 7 11 4 . 6 . 10 . . . . Catastrophic 10 | . . . 2 1 2 . 2 . 3 . . . . Database Lockouts 1 | . . . . . . . . . 1 . . . . Manual 34 | . 2 . 8 6 5 . 3 . 10 . . . . Terminals 44 | . 4 . 9 10 5 . 3 . 13 . . . . Fabricators 4 | . . . . . . . 3 . 1 . . . . Repair Stations . | . . . . . . . . . . . . . . Recycling Units 6 | . . . 1 . . . . . 5 . . . . Scanalyzers 7 | . . . . . . . 3 . 4 . . . . Garrison Access 10 | . . . . 5 . . 2 . 3 . . . . Terminal Hacks 121 | . 4 . 2 3 25 50 1 . 6 . . 30 . Record 85 | . . . . . 24 49 . . 1 . . 11 . Part Schematic 14 | . . . . . . . 1 . 1 . . 12 . Robot Schematic 4 | . . . . . . . . . . . . 4 . Robot Analysis 2 | . 1 . 1 . . . . . . . . . . Prototype ID Bank 4 | . . . . . . . . . 1 . . 3 . Open Door 2 | . . . . 2 . . . . . . . . . Open DSF 1 | . . . . . . . . . 1 . . . . Branch Access Points 3 | . . . 1 1 . . . . 1 . . . . Scanalyzer Index 1 | . 1 . . . . . . . . . . . . Locate Traps 1 | . 1 . . . . . . . . . . . . Security Status 1 | . . . . . 1 . . . . . . . . Transport Status 1 | . 1 . . . . . . . . . . . . Recall Extermination 1 | . . . . . . . . . 1 . . . . Proto ID Catalog 1 | . . . . . . 1 . . . . . . . Fabricator Hacks 2 | . . . . . . . 2 . . . . . . Load Schematic 1 | . . . . . . . 1 . . . . . . Build 1 | . . . . . . . 1 . . . . . . Repair Station Hacks . | . . . . . . . . . . . . . . Recycling Unit Hacks . | . . . . . . . . . . . . . . Scanalyzer 3 | . . . . . . . 1 . 2 . . . . Insert Component 2 | . . . . . . . 1 . 1 . . . . Analyze 1 | . . . . . . . . . 1 . . . . Garrison Access Hacks 3 | . . . . 1 . . . . 2 . . . . Seal Access 3 | . . . . 1 . . . . 2 . . . . Unauthorized Hacks 7 | . . . 1 . . . 1 . 5 . . . . Terminals . | . . . . . . . . . . . . . . Fabricators . | . . . . . . . . . . . . . . Repair Stations . | . . . . . . . . . . . . . . Recycling Units 6 | . . . 1 . . . . . 5 . . . . Tunnel 1 | . . . 1 . . . . . . . . . . Fedlink 3 | . . . . . . . . . 3 . . . . Scrapoids 2 | . . . . . . . . . 2 . . . . Scanalyzers . | . . . . . . . . . . . . . . Garrison Access 1 | . . . . . . . 1 . . . . . . Watchers 1 | . . . . . . . 1 . . . . . . Data Cores Recovered . | . . . . . . . . . . . . . . Used . | . . . . . . . . . . . . . . Hacking Detections 20 | . 1 . 3 4 2 . 4 . 6 . . . . Full Trace Events 8 | . . . . 2 . . 3 . 3 . . . . Feedback Events 1 | . . . . . . . . . 1 . . . . Corruption 1 | . . . . . . . . . 1 . . . . Feedback Blocked . | . . . . . . . . . . . . . . Robot Schematics Acquired 4 | . . . . . . . . . . . . 4 . Robots Built . | . . . . . . . . . . . . . . Authchips . | . . . . . . . . . . . . . . Time . | . . . . . . . . . . . . . . Total Robot Build Rating . | . . . . . . . . . . . . . . Part Schematics Acquired 15 | . . . . . . . 1 . 2 . . 12 . Parts Built . | . . . . . . . . . . . . . . Authchips . | . . . . . . . . . . . . . . Time 44 | . . . . . . . 44 . . . . . . Total Part Build Rating . | . . . . . . . . . . . . . . Part Studies Acquired . | . . . . . . . . . . . . . . Parts Repaired . | . . . . . . . . . . . . . . Time . | . . . . . . . . . . . . . . Parts Recycled . | . . . . . . . . . . . . . . Recycled Matter . | . . . . . . . . . . . . . . Retrieved Matter . | . . . . . . . . . . . . . . Retrieved Components . | . . . . . . . . . . . . . . Parts Scanalyzed 2 | . . . . . . . 1 . 1 . . . . Part Schematics Acquired 1 | . . . . . . . . . 1 . . . . Parts Damaged . | . . . . . . . . . . . . . . Bothacking | -11 -10 -10 -9 -9 -9 -9 -6 -6 -6 -6 -6 -6 -5 ------------ Run | Yrd Mat Min Mat Sto Rec Scr Fac Was Fac Low Low Dat Pro Used RIF Installer . | . . . . . . . . . . . . . . Robots Hacked 6 | . . . . . . . 1 . 4 . . 1 . Non-combat 1 | . . . . . . . . . 1 . . . . Combat 1 | . . . . . . . . . . . . 1 . Robot Hacks Applied 2 | . . . . . . . . . 1 . . 1 . parse_system 2 | . . . . . . . . . 1 . . 1 . Manual 5 | . . . . . . . 1 . 4 . . . . Relay Couplers Released . | . . . . . . . . . . . . . . Fabnet Peak Effective % . | . . . . . . . . . . . . . . Robots Rewired . | . . . . . . . . . . . . . . Allies Hacked 1 | . . . . . . . . . 1 . . . . Hacks Repelled . | . . . . . . . . . . . . . . Allies | -11 -10 -10 -9 -9 -9 -9 -6 -6 -6 -6 -6 -6 -5 -------- Run | Yrd Mat Min Mat Sto Rec Scr Fac Was Fac Low Low Dat Pro Total Allies 39 | . . 3 . . . . 1 20 14 . . . 1 Largest Group 19 | . . 3 2 . . . 1 19 14 . . . 1 Highest-Rated Group 684 | . . 40 24 . . . 26 684 551 . . . 96 Highest-Rated Ally 96 | . . 16 16 . . . 26 50 50 . . . 96 Initial UFD Resources 35 | . . . . . . . 22 22 22 32 32 32 35 Total Orders 1 | . . . . . . . . . 1 . . . . ROAM 1 | . . . . . . . . . 1 . . . . Ally Attacks 345 | . . 13 9 . . . . 92 227 . . . 4 Total Damage 10507 | . . 108 117 . . . . 4624 5499 . . . 159 Kills 56 | . . 3 1 . . . . 11 39 . . . 2 Allies Corrupted 1 | . . . . . . . . . 1 . . . . Allies Melted . | . . . . . . . . . . . . . . Intel | -11 -10 -10 -9 -9 -9 -9 -6 -6 -6 -6 -6 -6 -5 ------- Run | Yrd Mat Min Mat Sto Rec Scr Fac Was Fac Low Low Dat Pro Active Infowar (turns) 8137 | 14 605 415 822 420 . 2689 634 374 1427 278 223 74 162 Sensors 2218 | . . . 142 420 . 1 445 . 1210 . . . . Structural 2306 | . . . 154 . . 1665 487 . . . . . . Seismic 3312 | 14 605 415 384 . . . 23 374 1427 70 . . . Decoding 705 | . . . . . . . . . . 246 223 74 162 Cloaking 1023 | . . . . . . 1023 . . . . . . . ECM 344 | . . . 344 . . . . . . . . . . Robot Analysis Total 2 | . 1 . 1 . . . . . . . . . . Derelict Logs Recovered 4 | . . . . . . . . . . 2 . . 2 Drone Launches . | . . . . . . . . . . . . . . Drone Recoveries . | . . . . . . . . . . . . . . Exploration | -11 -10 -10 -9 -9 -9 -9 -6 -6 -6 -6 -6 -6 -5 ------------- Run | Yrd Mat Min Mat Sto Rec Scr Fac Was Fac Low Low Dat Pro Turns Passed 9708 | 63 605 415 875 1211 425 2901 673 376 1427 278 223 74 162 Spaces Moved 8653 | 46 352 370 391 645 341 2173 504 449 2315 382 315 93 277 Core 405 | 3 . . . . . . . 220 . . . . 182 Treads 319 | . 3 . 69 43 . 204 . . . . . . . Legs . | . . . . . . . . . . . . . . Wheels 4704 | 43 349 370 322 602 341 1969 504 121 80 3 . . . Hover 500 | . . . . . . . . 108 392 . . . . Flight 2725 | . . . . . . . . . 1843 379 315 93 95 Fastest Speed 28 | 50 95 110 110 110 125 100 100 50 28 61 70 70 50 Average Speed 93 | 83 110 110 137 127 125 131 107 74 45 68 70 70 56 Slowest Speed 240 | 95 240 110 240 240 125 240 135 200 180 110 70 70 85 Overloaded Moves 156 | . . . . . . . . . 123 28 . . 5 Propulsion Burnouts 1 | . . . . . . . . . . . . . 1 Robots Hopped 21 | . . . . . . . . . 20 1 . . . Potential Cave-ins . | . . . . . . . . . . . . . . Cave-ins Triggered 1 | . . . . . . . . . 1 . . . . Exploration Rate (%) 54 | 3 59 58 39 71 64 95 9 96 41 61 57 75 39 Regions Visited 13 Branch Regions 8 Pre-discovered Areas 8 | . . 1 1 . . 4 . . 1 . . 1 . Known Exits Taken 8 | . . . 1 1 1 1 . . 1 1 1 1 . Unknown Exits Taken 3 | 1 1 1 . . . . . . . . . . . Scrap Searched 16 | . . 2 . . . 10 . . . 2 2 . . Spaces Dug 35 | . . . 1 3 . . 5 . 26 . . . . Terrain Destroyed 106 | . . . 1 3 . . 76 . 26 . . . . Melee 35 | . . . 1 3 . . 5 . 26 . . . . Projectile . | . . . . . . . . . . . . . . AOE 71 | . . . . . . . 71 . . . . . . Terrain Rammed . | . . . . . . . . . . . . . . Walls Destroyed . | . . . . . . . . . . . . . . Machines Disabled . | . . . . . . . . . . . . . . Actions | -11 -10 -10 -9 -9 -9 -9 -6 -6 -6 -6 -6 -6 -5 --------- Run | Yrd Mat Min Mat Sto Rec Scr Fac Was Fac Low Low Dat Pro Total 9649 | 61 510 374 610 858 340 2215 583 490 2518 391 317 100 282 Wait 458 | . 120 . 123 91 . . 26 23 75 . . . . Move 8600 | 45 351 369 390 644 340 2172 504 448 2275 379 314 92 277 Hop 20 | . . . . . . . . . 19 1 . . . Pick Up 42 | 4 3 3 6 2 . 13 4 3 1 2 1 . . Fast Attach 31 | 7 . . 2 4 . 3 4 3 5 2 1 . . Attach 22 | . . . 4 9 . . 5 1 1 1 . 1 . Detach 5 | . . . . 1 . . . . . 1 . 1 2 Swap 101 | . 9 . 24 18 . 10 14 4 20 1 . . 1 Drop 41 | . . . 7 3 . 17 . 7 3 1 1 1 1 Fire 209 | 5 27 2 51 75 . . 18 . 26 . . 5 . Melee 84 | . . . 3 6 . . 8 1 63 3 . . . Ram . | . . . . . . . . . . . . . . Kick . | . . . . . . . . . . . . . . Crush 5 | . . . . 5 . . . . . . . . . Escape Stasis 30 | . . . . . . . . . 30 . . . . Rewire . | . . . . . . . . . . . . . . Trap . | . . . . . . . . . . . . . . Miscellaneous 1 | . . . . . . . . . . . . . 1 Route ------- -11/Scrapyard -10/Materials -10/Mines (discovered 2 exits: *Mat x2) -9/Materials (discovered 4 exits: [*Mat] / *Min / *Sto x2) -9/Storage -9/Recycling (discovered 2 exits: [*Fac] / *Scr) -9/Scraptown (discovered 2 exits: *Fac x2) -6/Factory -6/Waste -6/Factory (discovered 2 exits: *Low x2) -6/Lower Caves -6/Lower Caves (discovered 2 exits: *Fac / *Dat) -6/Data Miner -5/Proximity Caves (discovered 1 exit: Fac) History --------- Turn | Location | Event 6 | -11/Scrapyard | Discovered new exit (range 14) 64 | -11/Scrapyard | Entered Materials 310 | -10/Materials | Build established: Mutant 457 | -10/Materials | Discovered new exit (range 6) 669 | -10/Materials | Entered Mines 674 | -10/Mines | Assisted by bots powering up and referring to "LRC-V3" 769 | -10/Mines | Discovered new exit (range 7) 770 | -10/Mines | Learned location of Storage (-9) 935 | -10/Mines | Found a damaged Exp. Sensor Array with a note attached 937 | -10/Mines | Found Prototype Device 1027 | -10/Mines | Discovered new exit (range 11) 1084 | -10/Mines | Entered Materials 1084 | -9/Materials | Accompanied by 2 allies 1084 | -9/Materials | Evolved 2 slots: Utility x2 1537 | -9/Materials | Discovered new exit (range 12) 1817 | -9/Materials | Identified Exp. Sensor Array 1818 | -9/Materials | Identified exit to Mines 1818 | -9/Materials | Identified exit to Storage 1940 | -9/Materials | Discovered new exit (range 16) 1959 | -9/Materials | Entered Storage 2385 | -9/Storage | Garrison activated, responded to threat 2415 | -9/Storage | Core integrity fell below 50% 2677 | -9/Storage | Core integrity fell below 20% 2733 | -9/Storage | Lost 3 parts (1p1u1w) 3052 | -9/Storage | Identified exit to Recycling 3164 | -9/Storage | Used back door to open Recycling access 3170 | -9/Storage | Entered Recycling 3225 | -9/Recycling | Build established: Scavenger-Mutant 3258 | -9/Recycling | Discovered new exit (range 15) 3558 | -9/Recycling | Scanned before Scraplab entrance 3575 | -9/Recycling | Entered Scraplab 3593 | -9/Recycling | Discovered new exit (range 2) 3593 | -9/Recycling | Identified exit to Scraptown 3595 | -9/Recycling | Entered Scraptown 3946 | -9/Scraptown | Discovered new exit (range 5) 4146 | -9/Scraptown | Visited CPS Storage 4187 | -9/Scraptown | Visited Red Mages 4605 | -9/Scraptown | Visited Comm Corps 4707 | -9/Scraptown | Visited CR-KLE's Repair Center 4720 | -9/Scraptown | CR-KLE repaired 8 parts 4792 | -9/Scraptown | Visited Bundlers 4890 | -9/Scraptown | Visited Junk Repository 5097 | -9/Scraptown | Visited UFD Registry 5097 | -9/Scraptown | Registered with UFD as "Monospawn" 5133 | -9/Scraptown | Visited DA-N13 Charitable Foundation 5154 | -9/Scraptown | Found DCF Scrap (27 items) 5206 | -9/Scraptown | Visited LU-1G1's Boring Crew 5301 | -9/Scraptown | Visited Science Guys 5458 | -9/Scraptown | Build established: Mutant 5585 | -9/Scraptown | Visited Junk Cannon Lab 5618 | -9/Scraptown | Found Prototype Special Weapon 5618 | -9/Scraptown | Identified Junk Cannon 5658 | -9/Scraptown | Visited Scrapoid Pod Storage 5686 | -9/Scraptown | Visited Derelict Rescue Squad 5697 | -9/Scraptown | Found DRS Beacon 5723 | -9/Scraptown | Visited Cartography Club 5787 | -9/Scraptown | Discovered new exit (range 5) 6167 | -9/Scraptown | Learned location of Recycling (-9) 6167 | -9/Scraptown | Learned location of Upper Caves (-5) 6167 | -9/Scraptown | Learned location of Archives (-5) 6167 | -9/Scraptown | Learned 16 Materials zone layouts 6167 | -9/Scraptown | Learned 4 Recycling zone layouts 6167 | -9/Scraptown | Learned 8 Upper Caves zone layouts 6167 | -9/Scraptown | Learned 12 Upper Caves zone layouts 6167 | -9/Scraptown | Learned 16 Upper Caves zone layouts 6167 | -9/Scraptown | Learned 20 Upper Caves zone layouts 6167 | -9/Scraptown | Learned 12 Proximity Caves zone layouts 6167 | -9/Scraptown | Learned 16 Proximity Caves zone layouts 6167 | -9/Scraptown | Learned 20 Proximity Caves zone layouts 6167 | -9/Scraptown | Learned 4 Hub_04(d) zone layouts 6167 | -9/Scraptown | Learned location of 2 exits from Research 6167 | -9/Scraptown | Learned location of 3 exits from Lower Caves 6167 | -9/Scraptown | Learned location of 1 exit from Upper Caves 6198 | -9/Scraptown | Visited Abandonware Association 6218 | -9/Scraptown | Learned abandonware demo "HACKBUD.EXE" 6218 | -9/Scraptown | Learned abandonware demo "MELTYB.EXE" 6243 | -9/Scraptown | Visited Chapter 10 6272 | -9/Scraptown | Visited Supply Room 6344 | -9/Scraptown | Met Optimus 6344 | -9/Scraptown | Accepted into 0bPrime 6445 | -9/Scraptown | Found Scrap Suit 6470 | -9/Scraptown | Civil war broke out across Scraptown 6495 | -9/Scraptown | Identified exit to Factory 6496 | -9/Scraptown | Entered Factory 6496 | -6/Factory | Evolved 6 slots: Propulsion x4, Utility x2 7083 | -6/Factory | Lost 3 parts (3n) 7169 | -6/Factory | Sucked down chute 7169 | -6/Factory | Entered Waste 7170 | -6/Waste | Met a frightened Derelict 7233 | -6/Waste | Spotted C-40 Crusher 7244 | -6/Waste | Spotted C-40 Crusher 7272 | -6/Waste | Spotted C-40 Crusher 7276 | -6/Waste | Build established: Hacker-Mutant 7282 | -6/Waste | Spotted C-40 Crusher 7290 | -6/Waste | Spotted C-40 Crusher 7295 | -6/Waste | Crushed by Compactor (1 part destroyed, 1 dropped) 7300 | -6/Waste | Spotted C-40 Crusher 7309 | -6/Waste | Crushed by Compactor (1 part destroyed, 1 dropped) 7310 | -6/Waste | Crushed by Compactor (1 part destroyed, 1 dropped) 7341 | -6/Waste | Lost 4 parts (2n1u1w) 7403 | -6/Waste | Warlord forces began an assault 7439 | -6/Waste | Allies destroyed C-40 Crusher 7448 | -6/Waste | Allies destroyed C-40 Crusher 7450 | -6/Waste | Allies destroyed C-40 Crusher 7452 | -6/Waste | Allies destroyed C-40 Crusher 7453 | -6/Waste | Allies destroyed C-40 Crusher 7462 | -6/Waste | Allies destroyed C-40 Crusher 7491 | -6/Waste | Lost 5 allies 7514 | -6/Waste | Discovered new exit (range 12) 7538 | -6/Waste | Identified exit to Factory 7545 | -6/Waste | Entered Factory 7545 | -6/Factory | Accompanied by 14 allies 7587 | -6/Factory | Garrison activated, responded to threat 7594 | -6/Factory | Build established: Mutant 8160 | -6/Factory | Loaded intel: 8 recycling unit locations 8193 | -6/Factory | Learned location of Protoforge (-2) 8199 | -6/Factory | Garrison activated, responded to threat 8548 | -6/Factory | Central database locked down 8804 | -6/Factory | Crushed by falling debris 8804 | -6/Factory | System corruption reached 10% 8835 | -6/Factory | Lost 3 parts (2n1u) 8840 | -6/Factory | Scrapoids reinforcements arrived? 8851 | -6/Factory | Scrapoid reinforcements arrived 8899 | -6/Factory | Identified exit to Lower Caves 8972 | -6/Factory | Entered Lower Caves 8973 | -6/Lower Caves | Identified exit to Lower Caves 8975 | -6/Lower Caves | Core integrity fell below 50% 9003 | -6/Lower Caves | Found DCF Scrap (13 items) 9052 | -6/Lower Caves | Learned Factory terminal intel 9088 | -6/Lower Caves | Learned Factory stockpile data 9204 | -6/Lower Caves | Attacked by a delusional Derelict stockpiling parts 9250 | -6/Lower Caves | Entered another Lower Caves area 9251 | -6/Lower Caves | Identified exit to Factory 9251 | -6/Lower Caves | Identified exit to Data Miner 9473 | -6/Lower Caves | Entered Data Miner 9473 | -6/Data Miner | Discovered new exit (range 6) 9477 | -6/Data Miner | Identified exit to Proximity Caves 9490 | -6/Data Miner | Met Data Miner 9519 | -6/Data Miner | Learned location of Section 7 (-2) 9519 | -6/Data Miner | Acquired the access code to Warlord's prototype stash 9531 | -6/Data Miner | Received God Mode back door access code from Data Miner 9547 | -6/Data Miner | Entered Proximity Caves 9569 | -5/Proximity Caves | Attracted the attention of an 0b10 outpost 9583 | -5/Proximity Caves | Activated DRS Beacon 9624 | -5/Proximity Caves | Escorted by Enhanced Grunt 9625 | -5/Proximity Caves | Learned 4 Factory zone layouts 9650 | -5/Proximity Caves | Lost 6 parts (6n) 9676 | -5/Proximity Caves | Learned 8 Factory zone layouts 9691 | -5/Proximity Caves | Core integrity fell below 20% 9709 | -5/Proximity Caves | Destroyed by S-27 Virus with Autogun Last Messages --------------- 09625_ Acquired derelict log, extracted data. Data stored: Factory zone layouts (x4). 09631_ Enhanced Grunt destroyed. 09632_ System corrupted: Energy discharge (-23). 09648_ System corrupted: Matter fused (-10). 09655_ 20-VQV(h): "Need some help?" 09672_ Acquired 30 matter. 09674_ Acquired 26 matter. 09674_ Acquired 3 matter. 09676_ Acquired derelict log, extracted data. Data stored: Factory zone layouts (x8). 09681_ P-70 Sage resets M-22 Extractor, system corruption cleaned. 09688_ System corrupted: IFF burst signal emitted. 09697_ Axe destroyed. 09699_ M-28 Smith fits Backup Plating III on M-22 Extractor. 09704_ JLDMWBWRN1NIR1BZ3IOG9FOXE9P 09704_ HV Slug penetrates S-27 Virus. Map ----- +----------------------------------------------------+ | ## ###????????????????????? | | ## #######?????????????????????? | | ### ## ##?## #?????????????????????? | | #?######### % ### #?????????????????????? | | ??????????# #?????????????????????? | | ???###????# ##????????????????????? | | ??## #?#### ##???????????????????? | | ??# ### # ##??????????????????? | | ??# ## ### ##?????????????????? | | ### ## %## #### #?????????????????? | | % ## ##?# #?????????????????? | | ### ##?# #?????????????????? | | ## ##### "#### ##????????????????? | | ?## ## "" " #?#### #????????????????? | | ?## #"" "####### #????????????????? | | ## ### %= ### #????????????????? | | # ## % ##???????????????? | | ##"### " #???????????????? | | ######""" ""# ##???????????????? | | ##??#" "#### ###????????????????? | | #??##" ##??## ######??????????????????? | | #??# """ "###????###???????????????????????? | | ##??### #" ##????????????#####???????????????? | | ##?????#### ##########???## ##??????????????? | | ##????????# s ss ##### ##?????????????? | | ##??###### ######## @ ####??????????? | | #??# ##????########### ##?????????? | | #??# #??????????????### #####?????? | | # #??# ## ##???????????????# ## ##????? | | ## #### ### #???????????????# ##???? | | ## ## #### ##?????????????## #???? | | ## #### ##????????##### #?### | | ### ### ##???????# ## ##?# | | #?## ### #??????## ## ###??# | | #??## ### ##????### #######????# | | #???### ### #?###???### ############# | | ##????## #?## ##??##### ### | | ##????## #### #### ##?# | | #????## ## ##?# ""#### | | ###### ## ### " "### | | ### ## ## " "" | | ### ##?######## ### # """"" | | ### #?????????# ### ##### """""" | | # ### ########### ## #???# """""" | | #?### ## #??## " """ | | ##???## ### #?## """ | | #?????# ###### ##?# #?# """""" | | #?????# #????####??# ### ###"" | | ##???## ##??????????# ####" ## | | #??## ##??????????###### #? | +----------------------------------------------------+ Best States ------------- Heat Dissipation 51 Energy Generation 19 Energy Capacity 315 Matter Stores 300 Matter Capacity 300 Sight Range 16 Robot Scan Range 20 Terrain Scan Density 10 ECM Strength 1 Cloak Strength 2 Armor Coverage 225 Evasion (%) 61 Recoil Reduction 2 Offensive Hacking 24 Authchip Count 1 Item Schematics ----------------- Cld. VTOL Module | -6/Factory | Hacked Imp. Hacking Suite | -6/Factory | Hacked Adv. Transmission Jammer | -6/Factory | Scanalyzed Combat Drone Bay | -6/Data Miner | Free Lgt. Regenerative Plating | -6/Data Miner | Free Cld. Nuclear Pulse Thruster | -6/Data Miner | Free Exp. Heat Sink | -6/Data Miner | Free Thunder Hammer | -6/Data Miner | Free Field Propulsion Array | -6/Data Miner | Free Heavy Servo Lattice | -6/Data Miner | Free Dispersion Rifle | -6/Data Miner | Free Graphene Brace | -6/Data Miner | Free Phase Gun | -6/Data Miner | Free Linear Accelerator | -6/Data Miner | Free Adv. Remote Force Field | -6/Data Miner | Free Robot Schematics ------------------ L-41 Fighter | -6/Data Miner | Free Y-54 Guardian | -6/Data Miner | Free A-15 Conveyor | -6/Data Miner | Free Y-64 Sentinel | -6/Data Miner | Free Fabricated ------------ Nothing Repaired ---------- Nothing Studied --------- None Alien Tech Used ----------------- None Achievements -------------- Party Time Uncivil War Whoosh! Challenges ------------ None Game ------ Seed FluxAutogunMiniperforator Manual? 0 Play Time 02:02:10 Cumulative 43.0 hours Start 2026.04.04 @ 15:58:07 End 2026.04.04 @ 18:12:35 Sessions 1 Manual Loads 0 Difficulty Rogue Special Mode None Game No. 44 Rogue 44 Adventurer 0 Explorer 0 Win Type - Total 0 Types 0/0/0/0/0/0/0/0/0/0 Lore% 35 Gallery% 28 Achievement% 22 Wizard Run 0 Options --------- Layout 1 ASCII 0 Keyboard 1 Movement Vi Keybinds 0 Fullscreen 2 Font 24/Smallcaps Map View 50x35 Zoom Use 0% Tactical HUD 1 Map Filters NONE Filters NONE Steam 1 RUN: 227cf624-b75b-40e0-8607-5f37272964eb